{"text_format":"1","workbook":"xlsx","n_sheets":3,"sheets":["Vejledning","Lønseddel","Løn inkl. alle tillæg"],"not_rendered":{"charts":0,"images":0,"macros":1,"external_links":0,"defined_names":0,"comments":1,"pivot_tables":0},"unopened":[],"bounds":{"document_bytes":16777216,"sheet_cells":100000,"rows_first":2000,"rows_last":500,"rows_between":2000,"halvings":0,"cell_chars":16384,"cell_head_chars":4096},"cells_cut":0,"cells_raw":0,"read":"whole","date_system":"1900"}

{"sheet":"Vejledning","index":0,"n_rows":8,"n_cols":2,"rows_kept":8,"cut":false,"hidden":false,"merged":[]}
["Fane navn","Forklaring"]
["Kender lønnen","Benyttes hvis du kender bruttobeløbet, og vil kontrollere om Feriepenge-, SH/FF- og pensionbeløbet er korrekt.\nFelterne kender timerne og kender lønnen, giver et rettesnor for indtjeningen."]
["Kender Pensionsbeløbet","Her beregnes \"baglæns\" fra et brutto pensionsbeløb."]
["Kender Feriepengebeløbet","Her beregnes \"baglæns\" fra et brutto feriepengebeløb."]
["Kender SH og FF beløbet","Her beregnes \"baglæns\" fra et brutto SH og FFbeløb."]
["Kender Feriepenge, SH og FF","Her beregnes \"baglæns\" fra et brutto feriepenge-, SH-, og FFbeløb."]
["Kender nettobeløbet","Her beregnes \"baglæns\" fra et nettobeløb, det forudsætter at man kender trækprocent og lønmodtagerfradrag."]
["Arbejdsdagsberegner","Denne benyttet til at beregne antal arbejdsdage i en defineret periode mellem  2 datoer, og derefter modregne afholdt ferie og feriefridage, Og udfra den oplyste timeløn at beregne løn, feriepenge, SH og feriefridagsgodtgørelse samt pension i den definerede periode.."]

{"sheet":"Lønseddel","index":1,"n_rows":48,"n_cols":5,"rows_kept":48,"cut":false,"hidden":false,"merged":[]}
[null,"Enheder",null,"Sats","I alt"]
["Løn",66.5,null,275,{"$f":"SUM(B2*D2)","v":18287.5}]
[]
["Akkordoverskud",1,null,9500,{"$f":"SUM(B4*D4)","v":9500}]
[]
["Overarbejde med 50% tillæg",8,0.5,{"$f":"SUM($D$2*C6)","v":137.5},{"$f":"SUM(B6*D6)","v":1100}]
["Overarbejde med 100% tillæg",12,1,{"$f":"SUM($D$2*C7)","v":275},{"$f":"SUM(B7*D7)","v":3300}]
[]
["Sygeløn",7.5,null,133,{"$f":"SUM(B9*D9)","v":997.5}]
[]
["Skurpenge",3,null,57.5,{"$f":"SUM(B11*D11)","v":172.5}]
["Skurpenge",2,null,90,{"$f":"SUM(B12*D12)","v":180}]
[]
["Køretid",225,null,0.75,{"$f":"SUM(B14*D14)","v":168.75}]
[]
["Skattepligtige kørepenge *",100,null,2.1,{"$f":"SUM(B16*D16)","v":210}]
[]
[null,"Sats"]
["Ferieberettiget løn i alt",null,{"$f":"SUM(E2:E14)","v":33706.25},null,{"$f":"SUM(E2:E16)","v":33916.25}]
[]
["Feriepenge",0.125,{"$f":"SUM(C19*B21)","v":4213.28125}]
[]
["SH-, og Feriefridagsgodtgørelse",6.9000000000000006E-2,{"$f":"SUM(C19*B23)","v":2325.7312500000003}]
[]
["Pensionsgrundlag",null,{"$f":"SUM(C19:C23)+E16","v":40455.262499999997}]
[]
["Pension - Virksomhed",8.1500000000000003E-2,{"$f":"SUM(C25*B27)","v":3297.1038937499998}]
[]
["Pension - Medarbejder",0.04,{"$f":"SUM(C25*B29)","v":1618.2104999999999},null,{"$f":"-SUM(C29)","v":-1618.2104999999999}]
[]
["ATP - Medarbejder",null,null,null,-90]
[null,null,"Sats"]
["Arbejdsmarkeds bidragspligtigt beløb",{"$f":"SUM(E19:E31)","v":32208.039499999999},0.08,null,{"$f":"-SUM(B33*C33)","v":-2576.6431600000001}]
[]
["G-dage",3,null,788,{"$f":"SUM(B35*D35)","v":2364}]
[]
["Skattefradrag",-7500,null,{"$f":"SUM(B33,E33,E35)","v":31995.396339999999}]
[]
["A-Skat",null,0.42,{"$f":"SUM(B37:D37)","v":24495.396339999999},{"$f":"-SUM(D39*C39)","v":-10288.066462799999}]
[]
[null,"Enheder",null,"Sats"]
["Skattefrie kørepenge",100,null,2.1,{"$f":"SUM(B42*D42)","v":210}]
[]
["Skattefrie Diæter",3,null,275,{"$f":"SUM(B44*D44)","v":825}]
[]
["Til udbetaling",null,null,null,{"$f":"SUM(E19:E42)","v":21917.329877199998}]
[]
["* Skattepligtige kørepenge er pensionsberettigede, men ikke Ferie og SH berettigede."]

{"sheet":"Løn inkl. alle tillæg","index":2,"n_rows":26,"n_cols":6,"rows_kept":26,"cut":false,"hidden":false,"merged":[[2,0,3,4],[17,0,18,4]]}
[]
["Lønnen er inkl. alle de overenskomstmæssige tillæg"]
["Gennemsnitslønnen fra det nationale websted www.workplacedenmark.dk for det pågældende arbejde i den pågældende region. (Eller den aftalte løn jf. §2), indsættes i kr. her:"]
[null,null,null,null,null,295]
[null,null,null,"Pension",0.10150000000000001]
[null,null,null,"Løn eskl. pension",null,{"$f":"F4/(1+SUM(E5))","v":267.81661370857921}]
[null,null,null,"Særliglønopsparring",0.14699999999999999]
[null,null,null,"Feriepenge",0.125]
["Grundtimelønnen eksl. feriepenge, SH og pension udgør kr.:",null,null,null,{"$f":"F6/(1+SUM(E7,E8))","v":210.54765228661887}]
[]
["Denne løn er medarbejederns grundtimeløn, som skal udbetales ved hver lønperiode afslutning."]
[]
["Er der overarbejde eller andre variable tillæg, skal disse tillægges grundtimelønnen."]
[]
[]
["Brutto betaling inkl. variable arbejdstidstillæg"]
[]
["Medarbejderens samlede bruttobetaling inkl. variable arbejdstidstillæg (f.eks forskudtid, overarbejde) for den pågældende lønperiode, indsættes i kr. her:"]
[null,null,null,null,null,28000]
[]
[]
["Feriepengene udgør af periodens bruttobetaling kr.:",null,null,null,{"$f":"SUM($E$8)","v":0.125},{"$f":"SUM(F19*E22)","v":3500}]
["Søgnehelligdagsbetalingen udgør af periodens bruttobetaling kr.:",null,null,null,{"$f":"SUM($E$7)","v":0.14699999999999999},{"$f":"SUM(F19*E23)","v":4116}]
["Pensionen udgør af periodens bruttobetaling kr.:",null,null,null,{"$f":"SUM($E$5)","v":0.10150000000000001},{"$f":"SUM(E25*E24)","v":3615.0240000000003}]
[null,null,null,null,{"$f":"SUM(F19+F22+F23)","v":35616}]
[null,null,null,"Opsat løn der skal indbetales til 3F Feriekassen",{"$f":"SUM(F22+F23+F24)","v":11231.024000000001},"kr."]